[Event "44th Chess Olympiad Open 2022"]
[Site "Chennai"]
[Date "2022.08.06"]
[Round "8.61"]
[White "Namale, Ben Nguku"]
[Black "Rodriguez Santiago, Jaime"]
[Result "1-0"]
[WhiteElo "1962"]
[BlackElo "2067"]
[Annotator "NA RC"]
[PlyCount "91"]
[EventDate "2022.??.??"]
[TimeControl "60"]

1. d4 {[%emt 0:00:02]} d5 {[%emt 0:00:09]} 2. Nf3 {[%emt 0:00:23]} Nf6 {
[%emt 0:00:09]} 3. c4 {[%emt 0:00:15]} c6 {[%emt 0:00:04]} 4. Nc3 {[%emt 0:00:
00]} e6 {[%emt 0:00:15]} 5. cxd5 {[%emt 0:00:34]} exd5 {[%emt 0:00:45]} 6. Bg5
{[%emt 0:00:20]} Nbd7 {[%emt 0:01:19]} 7. Qc2 {[%emt 0:03:09]} Be7 {[%emt 0:00:
00]} 8. e3 {[%emt 0:00:17]} O-O {[%emt 0:01:05]} 9. Bd3 {[%emt 0:00:26]} Re8 {
[%emt 0:00:09]} 10. O-O {[%emt 0:04:26]} Nf8 {[%emt 0:01:21]} 11. h3 {[%emt 0:
00:00]} Ne4 {[%emt 0:05:42]} 12. Bf4 {[%emt 0:02:58]} f5 {[%emt 0:05:52]} 13.
Ne5 {[%emt 0:01:25]} Bf6 {[%emt 0:01:06]} 14. f3 {[%emt 0:05:35]} Nd6 {[%emt 0:
00:00]} 15. Bh2 {[%emt 0:20:04]} g6 {[%emt 0:08:46]} 16. Na4 {[%emt 0:09:51]}
Bxe5 {[%emt 0:04:50]} 17. Bxe5 {[%emt 0:05:50]} Nf7 {[%emt 0:01:18]} 18. f4 {
[%emt 0:03:43]} Nxe5 {[%emt 0:00:43]} 19. fxe5 {[%emt 0:00:19]} Qg5 {[%emt 0:
00:00]} 20. Rf3 {[%emt 0:01:22]} Ne6 {[%emt 0:01:26]} 21. Nc5 {[%emt 0:09:38]}
Rf8 {[%emt 0:01:38]} 22. Raf1 {[%emt 0:00:55]} Rf7 {[%emt 0:07:23]} 23. Kh2 {
[%emt 0:01:55]} Qh4 {[%emt 0:05:13]} 24. Nxe6 {[%emt 0:07:33]} Bxe6 {[%emt 0:
00:00]} 25. Qc5 {[%emt 0:00:06]} a6 {[%emt 0:03:20]} 26. b4 {[%emt 0:01:21]}
Raf8 {[%emt 0:09:42]} 27. Qd6 {[%emt 0:02:36]} Re8 {[%emt 0:05:28]} 28. a4 {
[%emt 0:01:01]} Rd7 {[%emt 0:01:08]} 29. Qc5 {[%emt 0:00:18]} Qd8 {[%emt 0:00:
00]} 30. Qc1 {[%emt 0:06:29]} Qb6 {[%emt 0:03:58]} 31. Qe1 {[%emt 0:00:34]} a5
{[%emt 0:02:09]} 32. bxa5 {[%emt 0:00:32]} Qb3 {[%emt 0:00:20]} 33. Qd1 {
[%emt 0:02:19]} Qc3 {[%emt 0:01:32]} 34. a6 {[%emt 0:00:56]} bxa6 {[%emt 0:00:
00]} 35. Bxa6 {[%emt 0:00:30]} Ra7 {[%emt 0:00:40]} 36. e4 {[%emt 0:00:24]} Qa5
{[%emt 0:01:16]} 37. exf5 {[%emt 0:00:15]} Bxf5 {[%emt 0:00:21]} 38. Bd3 {
[%emt 0:00:16]} Bxd3 {[%emt 0:03:13]} 39. Qxd3 {[%emt 0:00:08]} Qa6 {[%emt 0:
00:00]} 40. Qe3 {[%emt 0:02:07]} Qxa4 {[%emt 0:01:34]} 41. Qf2 {[%emt 0:31:38]}
Qb4 {[%emt 0:05:37]} 42. Rf7 {[%emt 0:00:39]} Qb8 {[%emt 0:29:23]} 43. Qf6 {
[%emt 0:01:30]} Rxf7 {[%emt 0:00:12]} 44. Qxf7+ {[%emt 0:00:01]} Kh8 {[%emt 0:
00:00]} 45. Qf6+ {[%emt 0:00:39]} Kg8 {[%emt 0:00:04]} 46. Qxc6 {[%emt 0:00:00]
} 1-0

[Event "44th Chess Olympiad Open 2022"]
[Site "Chennai"]
[Date "2022.08.06"]
[Round "8.62"]
[White "De Silva, L M S T.."]
[Black "Mambe, Lobognon Anderson O"]
[Result "1-0"]
[WhiteElo "2212"]
[BlackElo "1921"]
[Annotator "NA RC"]
[PlyCount "75"]
[EventDate "2022.??.??"]
[TimeControl "60"]

1. e4 {[%emt 0:00:06]} e6 {[%emt 0:00:12]} 2. d4 {[%emt 0:00:09]} d5 {[%emt 0:
00:00]} 3. Nc3 {[%emt 0:00:09]} Nf6 {[%emt 0:00:17]} 4. Bg5 {[%emt 0:00:24]}
Be7 {[%emt 0:00:27]} 5. e5 {[%emt 0:00:24]} Nfd7 {[%emt 0:00:38]} 6. h4 {
[%emt 0:00:34]} a6 {[%emt 0:00:44]} 7. Qg4 {[%emt 0:03:05]} h5 {[%emt 0:07:06]}
8. Qg3 {[%emt 0:05:11]} g6 {[%emt 0:00:25]} 9. Nf3 {[%emt 0:04:51]} c5 {
[%emt 0:00:37]} 10. dxc5 {[%emt 0:04:28]} Nxc5 {[%emt 0:00:40]} 11. O-O-O {
[%emt 0:05:49]} Nc6 {[%emt 0:00:56]} 12. Qf4 {[%emt 0:06:58]} b5 {[%emt 0:00:
00]} 13. Bxe7 {[%emt 0:16:42]} Qxe7 {[%emt 0:02:04]} 14. Nd4 {[%emt 0:03:24]}
Nd8 {[%emt 0:03:16]} 15. a3 {[%emt 0:05:42]} Rb8 {[%emt 0:03:54]} 16. Re1 {
[%emt 0:08:33]} b4 {[%emt 0:01:17]} 17. Nxd5 {[%emt 0:01:48]} Qb7 {[%emt 0:00:
00]} 18. Nxb4 {[%emt 0:02:02]} a5 {[%emt 0:00:29]} 19. Nb5 {[%emt 0:00:54]} O-O
{[%emt 0:00:41]} 20. Na2 {[%emt 0:01:02]} Bd7 {[%emt 0:02:22]} 21. Nac3 {
[%emt 0:00:31]} Nc6 {[%emt 0:02:37]} 22. Qe3 {[%emt 0:00:47]} Na6 {[%emt 0:00:
00]} 23. Ne4 {[%emt 0:00:46]} Kg7 {[%emt 0:01:13]} 24. Rd1 {[%emt 0:04:21]} Ne7
{[%emt 0:03:15]} 25. Ned6 {[%emt 0:01:58]} Qc6 {[%emt 0:02:44]} 26. Nc3 {
[%emt 0:01:23]} Nc7 {[%emt 0:01:34]} 27. Bc4 {[%emt 0:02:22]} Ned5 {[%emt 0:00:
00]} 28. Qd4 {[%emt 0:02:49]} Nxc3 {[%emt 0:00:48]} 29. Qxc3 {[%emt 0:00:09]}
Qb6 {[%emt 0:01:59]} 30. Qd4 {[%emt 0:02:46]} Qc6 {[%emt 0:04:42]} 31. f4 {
[%emt 0:00:43]} Qxg2 {[%emt 0:01:47]} 32. Rhg1 {[%emt 0:00:26]} Qh3 {[%emt 0:
00:00]} 33. f5 {[%emt 0:01:15]} Nb5 {[%emt 0:06:03]} 34. Bxb5 {[%emt 0:00:44]}
Bxb5 {[%emt 0:00:03]} 35. fxg6 {[%emt 0:00:36]} Be2 {[%emt 0:04:02]} 36. Qf2 {
[%emt 0:02:24]} Bg4 {[%emt 0:01:28]} 37. gxf7 {[%emt 0:00:45]} Kh7 {[%emt 0:00:
00]} 38. Rd3 {[%emt 0:00:17]} 1-0

[Event "44th Chess Olympiad Open 2022"]
[Site "Chennai"]
[Date "2022.08.06"]
[Round "8.62"]
[White "Manan, Yoboue Hermann"]
[Black "Liyanage, Ranindu Dilshan"]
[Result "0-1"]
[WhiteElo "2066"]
[BlackElo "2286"]
[Annotator "NA RC"]
[PlyCount "62"]
[EventDate "2022.??.??"]
[TimeControl "60"]

1. e4 {[%emt 0:00:12]} e6 {[%emt 0:00:40]} 2. d4 {[%emt 0:00:29]} d5 {[%emt 0:
00:00]} 3. Nc3 {[%emt 0:00:23]} Nf6 {[%emt 0:00:10]} 4. e5 {[%emt 0:00:27]}
Nfd7 {[%emt 0:00:06]} 5. Nce2 {[%emt 0:00:29]} c5 {[%emt 0:00:21]} 6. c3 {
[%emt 0:00:09]} Nc6 {[%emt 0:00:07]} 7. Nf3 {[%emt 0:00:12]} Be7 {[%emt 0:00:
00]} 8. g3 {[%emt 0:00:20]} b5 {[%emt 0:05:25]} 9. Nf4 {[%emt 0:01:10]} Qb6 {
[%emt 0:03:08]} 10. Bh3 {[%emt 0:03:49]} Rg8 {[%emt 0:15:39]} 11. Nxe6 {
[%emt 0:09:07]} fxe6 {[%emt 0:00:06]} 12. Bxe6 {[%emt 0:00:35]} Rf8 {[%emt 0:
00:00]} 13. Bxd5 {[%emt 0:01:41]} Bb7 {[%emt 0:00:42]} 14. O-O {[%emt 0:03:03]}
O-O-O {[%emt 0:03:07]} 15. Bf4 {[%emt 0:01:07]} Ndxe5 {[%emt 0:25:04]} 16. Nxe5
{[%emt 0:00:22]} Rxd5 {[%emt 0:00:21]} 17. Qg4+ {[%emt 0:00:46]} Kd8 {[%emt 0:
00:00]} 18. Qxg7 {[%emt 0:09:37]} Nxe5 {[%emt 0:00:17]} 19. dxe5 {[%emt 0:00:
00]} Qe6 {[%emt 0:01:18]} 20. Rad1 {[%emt 0:20:06]} Kc8 {[%emt 0:02:05]} 21.
Rxd5 {[%emt 0:04:10]} Bxd5 {[%emt 0:01:00]} 22. f3 {[%emt 0:04:43]} c4 {
[%emt 0:12:51]} 23. Kg2 {[%emt 0:00:58]} Bc5 {[%emt 0:14:11]} 24. Bg5 {[%emt 0:
00:00]} Rf7 {[%emt 0:01:41]} 25. Qg8+ {[%emt 0:04:51]} Kb7 {[%emt 0:00:50]} 26.
Bf4 {[%emt 0:00:26]} Qd7 {[%emt 0:04:37]} 27. Qg5 {[%emt 0:01:54]} Be6 {
[%emt 0:00:47]} 28. Qh6 {[%emt 0:10:03]} Qd3 {[%emt 0:01:08]} 29. Re1 {[%emt 0:
00:00]} Qc2+ {[%emt 0:00:47]} 30. Bd2 {[%emt 0:01:30]} Bd5 {[%emt 0:00:29]} 31.
h4 {[%emt 0:08:16]} Rxf3 {[%emt 0:00:35]} 0-1

[Event "44th Chess Olympiad Open 2022"]
[Site "Chennai"]
[Date "2022.08.06"]
[Round "8.62"]
[White "Alahakoon, Isuru"]
[Black "De Gondo, Simplice Armel"]
[Result "1-0"]
[WhiteElo "2000"]
[BlackElo "2135"]
[Annotator "NA RC"]
[PlyCount "113"]
[EventDate "2022.??.??"]
[TimeControl "60"]

1. Nf3 {[%emt 0:00:03]} c5 {[%emt 0:00:03]} 2. e3 {[%emt 0:00:17]} Nf6 {
[%emt 0:00:15]} 3. d4 {[%emt 0:00:10]} e6 {[%emt 0:00:02]} 4. Bd3 {[%emt 0:00:
00]} b6 {[%emt 0:00:02]} 5. O-O {[%emt 0:00:43]} Bb7 {[%emt 0:00:01]} 6. b3 {
[%emt 0:01:11]} d5 {[%emt 0:00:39]} 7. Bb2 {[%emt 0:01:41]} cxd4 {[%emt 0:00:
00]} 8. Bb5+ {[%emt 0:08:31]} Bc6 {[%emt 0:03:08]} 9. Nxd4 {[%emt 0:04:26]}
Bxb5 {[%emt 0:00:02]} 10. Nxb5 {[%emt 0:00:05]} a6 {[%emt 0:00:01]} 11. Bxf6 {
[%emt 0:03:25]} gxf6 {[%emt 0:01:23]} 12. Nd4 {[%emt 0:00:34]} f5 {[%emt 0:00:
00]} 13. Qh5 {[%emt 0:05:19]} Qd6 {[%emt 0:09:42]} 14. c4 {[%emt 0:13:00]} Nd7
{[%emt 0:02:48]} 15. Nc3 {[%emt 0:11:30]} Nf6 {[%emt 0:08:12]} 16. Qf3 {
[%emt 0:02:17]} Ne4 {[%emt 0:00:38]} 17. cxd5 {[%emt 0:07:04]} Nd2 {[%emt 0:00:
00]} 18. Qh5 {[%emt 0:03:24]} Nxf1 {[%emt 0:00:16]} 19. Rxf1 {[%emt 0:00:06]}
Bg7 {[%emt 0:06:20]} 20. dxe6 {[%emt 0:06:23]} O-O {[%emt 0:01:40]} 21. Nxf5 {
[%emt 0:03:57]} Qxe6 {[%emt 0:00:42]} 22. Qg4 {[%emt 0:03:44]} Qe5 {[%emt 0:00:
00]} 23. Nd5 {[%emt 0:01:45]} Kh8 {[%emt 0:03:16]} 24. Nxb6 {[%emt 0:06:38]}
Rad8 {[%emt 0:00:07]} 25. Nc4 {[%emt 0:00:17]} Qc3 {[%emt 0:00:09]} 26. h3 {
[%emt 0:02:42]} Rg8 {[%emt 0:00:12]} 27. Nfd6 {[%emt 0:02:59]} Qf6 {[%emt 0:00:
00]} 28. Qd4 {[%emt 0:07:59]} Rgf8 {[%emt 0:00:17]} 29. Qxf6 {[%emt 0:01:28]}
Bxf6 {[%emt 0:00:03]} 30. e4 {[%emt 0:00:52]} Rd7 {[%emt 0:00:12]} 31. f4 {
[%emt 0:00:32]} Bd4+ {[%emt 0:00:28]} 32. Kh2 {[%emt 0:00:07]} f6 {[%emt 0:00:
00]} 33. Rd1 {[%emt 0:00:18]} Bc5 {[%emt 0:00:43]} 34. Rd5 {[%emt 0:00:51]}
Bxd6 {[%emt 0:00:23]} 35. Nxd6 {[%emt 0:00:10]} Kg8 {[%emt 0:00:53]} 36. Kg3 {
[%emt 0:00:42]} a5 {[%emt 0:04:06]} 37. Kf3 {[%emt 0:01:04]} a4 {[%emt 0:00:59]
} 38. b4 {[%emt 0:00:19]} f5 {[%emt 0:00:36]} 39. e5 {[%emt 0:00:43]} Rc7 {
[%emt 0:00:27]} 40. Rd3 {[%emt 0:00:48]} Rc2 {[%emt 0:00:27]} 41. a3 {[%emt 0:
00:00]} Rd8 {[%emt 0:30:21]} 42. g4 {[%emt 0:00:41]} fxg4+ {[%emt 0:00:35]} 43.
hxg4 {[%emt 0:00:12]} Kf8 {[%emt 0:00:56]} 44. Ke4 {[%emt 0:00:00]} Rb2 {
[%emt 0:00:00]} 45. f5 {[%emt 0:00:00]} Ke7 {[%emt 0:00:00]} 46. Kd5 {[%emt 0:
00:00]} Rb3 {[%emt 0:00:00]} 47. f6+ {[%emt 0:00:00]} Kf8 {[%emt 0:00:00]} 48.
Rd4 {[%emt 0:00:00]} Rxa3 {[%emt 0:00:00]} 49. e6 {[%emt 0:00:00]} Rxd6+ {
[%emt 0:00:00]} 50. Kxd6 {[%emt 0:00:00]} Re3 {[%emt 0:00:00]} 51. Rd5 {
[%emt 0:00:00]} Rf3 {[%emt 0:00:00]} 52. g5 {[%emt 0:00:00]} h6 {[%emt 0:00:00]
} 53. Ra5 {[%emt 0:00:00]} Kg8 {[%emt 0:00:00]} 54. f7+ {[%emt 0:00:00]} Kg7 {
[%emt 0:00:00]} 55. gxh6+ {[%emt 0:00:00]} Kxh6 {[%emt 0:00:00]} 56. Ra8 {
[%emt 0:00:00]} a3 {[%emt 0:00:00]} 57. f8=Q+ {[%emt 0:00:00]} 1-0

[Event "44th Chess Olympiad Open 2022"]
[Site "Chennai"]
[Date "2022.08.06"]
[Round "8.62"]
[White "Amako Marc Arnold"]
[Black "Nabil Nazar, Mohamed"]
[Result "1/2-1/2"]
[WhiteElo "1547"]
[BlackElo "1845"]
[Annotator "NA RC"]
[PlyCount "119"]
[EventDate "2022.??.??"]
[TimeControl "60"]

1. e4 {[%emt 0:00:04]} c5 {[%emt 0:00:20]} 2. Nf3 {[%emt 0:00:07]} e6 {[%emt 0:
00:00]} 3. d4 {[%emt 0:00:12]} cxd4 {[%emt 0:00:05]} 4. c3 {[%emt 0:00:07]} d3
{[%emt 0:01:14]} 5. Bxd3 {[%emt 0:00:33]} d5 {[%emt 0:00:09]} 6. e5 {[%emt 0:
00:00]} Nc6 {[%emt 0:01:18]} 7. O-O {[%emt 0:00:14]} Nge7 {[%emt 0:00:53]} 8.
Bg5 {[%emt 0:03:14]} Qc7 {[%emt 0:00:42]} 9. Re1 {[%emt 0:00:34]} Ng6 {[%emt 0:
00:00]} 10. Qe2 {[%emt 0:00:59]} Be7 {[%emt 0:05:44]} 11. Bxe7 {[%emt 0:00:41]}
Qxe7 {[%emt 0:00:38]} 12. Na3 {[%emt 0:00:07]} Nf4 {[%emt 0:01:10]} 13. Qe3 {
[%emt 0:00:28]} Nxd3 {[%emt 0:00:04]} 14. Qxd3 {[%emt 0:00:25]} O-O {[%emt 0:
00:00]} 15. Nb5 {[%emt 0:02:34]} a6 {[%emt 0:00:19]} 16. Nbd4 {[%emt 0:00:08]}
Bd7 {[%emt 0:00:37]} 17. Ne2 {[%emt 0:05:23]} f6 {[%emt 0:13:55]} 18. Ng3 {
[%emt 0:00:32]} f5 {[%emt 0:04:44]} 19. h4 {[%emt 0:03:41]} g6 {[%emt 0:02:37]}
20. Rad1 {[%emt 0:03:34]} Rac8 {[%emt 0:04:36]} 21. Qd2 {[%emt 0:04:01]} Na5 {
[%emt 0:01:15]} 22. b3 {[%emt 0:00:47]} Rc7 {[%emt 0:00:45]} 23. c4 {[%emt 0:
00:00]} Nc6 {[%emt 0:10:49]} 24. cxd5 {[%emt 0:00:10]} exd5 {[%emt 0:00:05]}
25. Qxd5+ {[%emt 0:00:13]} Be6 {[%emt 0:00:16]} 26. Qd6 {[%emt 0:00:19]} h6 {
[%emt 0:04:36]} 27. Ne2 {[%emt 0:20:16]} Kf7 {[%emt 0:15:10]} 28. Ned4 {
[%emt 0:00:00]} Nd8 {[%emt 0:01:29]} 29. Nxe6 {[%emt 0:00:00]} Nxe6 {[%emt 0:
00:00]} 30. Nd4 {[%emt 0:00:00]} Nxd4 {[%emt 0:09:30]} 31. Rxd4 {[%emt 0:00:00]
} Re8 {[%emt 0:06:17]} 32. h5 {[%emt 0:01:55]} Rc6 {[%emt 0:01:16]} 33. hxg6+ {
[%emt 0:01:24]} Kg7 {[%emt 0:00:15]} 34. Qd7 {[%emt 0:00:25]} Kxg6 {[%emt 0:00:
00]} 35. Re3 {[%emt 0:03:00]} Qxd7 {[%emt 0:03:24]} 36. Rxd7 {[%emt 0:00:11]}
f4 {[%emt 0:00:32]} 37. Rf3 {[%emt 0:02:05]} Rxe5 {[%emt 0:02:15]} 38. Rxb7 {
[%emt 0:00:24]} Rh5 {[%emt 0:03:00]} 39. g3 {[%emt 0:01:29]} fxg3 {[%emt 0:00:
00]} 40. Rxg3+ {[%emt 0:00:16]} Kf6 {[%emt 0:03:03]} 41. a4 {[%emt 0:30:46]}
Ke5 {[%emt 0:07:03]} 42. Kg2 {[%emt 0:00:00]} Rf5 {[%emt 0:03:16]} 43. Re7+ {
[%emt 0:00:00]} Kd4 {[%emt 0:03:18]} 44. Re2 {[%emt 0:00:00]} Rg5 {[%emt 0:00:
00]} 45. Rxg5 {[%emt 0:00:00]} hxg5 {[%emt 0:00:02]} 46. Kf3 {[%emt 0:00:00]}
Rc3+ {[%emt 0:04:07]} 47. Re3 {[%emt 0:00:00]} a5 {[%emt 0:00:11]} 48. Ke2 {
[%emt 0:00:00]} Rxe3+ {[%emt 0:05:37]} 49. fxe3+ {[%emt 0:00:00]} Ke4 {[%emt 0:
00:00]} 50. b4 {[%emt 0:00:00]} axb4 {[%emt 0:00:01]} 51. a5 {[%emt 0:00:00]}
Kd5 {[%emt 0:03:21]} 52. e4+ {[%emt 0:00:00]} Kc6 {[%emt 0:00:50]} 53. e5 {
[%emt 0:00:00]} b3 {[%emt 0:00:17]} 54. Kd2 {[%emt 0:00:00]} g4 {[%emt 0:00:30]
} 55. e6 {[%emt 0:00:00]} g3 {[%emt 0:00:10]} 56. e7 {[%emt 0:00:00]} Kd7 {
[%emt 0:00:07]} 57. a6 {[%emt 0:00:00]} g2 {[%emt 0:05:12]} 58. a7 {[%emt 0:00:
00]} g1=Q {[%emt 0:01:19]} 59. e8=Q+ {[%emt 0:00:00]} Kxe8 {[%emt 0:00:06]} 60.
a8=Q+ {[%emt 0:00:00]} 1/2-1/2

[Event "44th Chess Olympiad Open 2022"]
[Site "Chennai"]
[Date "2022.08.06"]
[Round "8.63"]
[White "Villanueva, Marcio"]
[Black "Arnold Smith"]
[Result "1-0"]
[WhiteElo "2009"]
[BlackElo "1931"]
[Annotator "NA RC"]
[PlyCount "133"]
[EventDate "2022.??.??"]
[TimeControl "60"]

1. Nf3 {[%emt 0:00:03]} d5 {[%emt 0:00:20]} 2. d4 {[%emt 0:00:07]} Nf6 {
[%emt 0:00:24]} 3. g3 {[%emt 0:00:11]} Bf5 {[%emt 0:00:59]} 4. Bg2 {[%emt 0:00:
00]} e6 {[%emt 0:01:59]} 5. c4 {[%emt 0:00:27]} c6 {[%emt 0:01:03]} 6. Nc3 {
[%emt 0:00:52]} h6 {[%emt 0:01:04]} 7. Qb3 {[%emt 0:02:10]} Qb6 {[%emt 0:01:50]
} 8. c5 {[%emt 0:00:08]} Qxb3 {[%emt 0:00:25]} 9. axb3 {[%emt 0:00:02]} Be7 {
[%emt 0:00:54]} 10. b4 {[%emt 0:00:57]} Nbd7 {[%emt 0:00:55]} 11. Bf4 {[%emt 0:
00:00]} O-O {[%emt 0:00:23]} 12. O-O {[%emt 0:00:27]} a6 {[%emt 0:01:38]} 13.
Ra3 {[%emt 0:00:13]} Ne4 {[%emt 0:00:36]} 14. Nd2 {[%emt 0:07:01]} Nxd2 {
[%emt 0:05:55]} 15. Bxd2 {[%emt 0:00:05]} Bf6 {[%emt 0:00:24]} 16. e3 {[%emt 0:
00:00]} e5 {[%emt 0:00:15]} 17. Ne2 {[%emt 0:03:45]} Rfe8 {[%emt 0:02:14]} 18.
Bc3 {[%emt 0:01:50]} Bd3 {[%emt 0:00:54]} 19. Re1 {[%emt 0:01:52]} Bxe2 {
[%emt 0:00:22]} 20. dxe5 {[%emt 0:00:30]} Bxe5 {[%emt 0:02:04]} 21. Rxe2 {
[%emt 0:00:47]} Nf6 {[%emt 0:00:32]} 22. Rd2 {[%emt 0:04:40]} Rad8 {[%emt 0:00:
00]} 23. Kf1 {[%emt 0:03:06]} Ng4 {[%emt 0:06:40]} 24. h3 {[%emt 0:06:59]} Bxc3
{[%emt 0:02:58]} 25. bxc3 {[%emt 0:00:32]} Ne5 {[%emt 0:01:57]} 26. Ra1 {
[%emt 0:00:20]} f5 {[%emt 0:03:11]} 27. Rd4 {[%emt 0:02:41]} Nc4 {[%emt 0:00:
00]} 28. Bf3 {[%emt 0:02:11]} Rf8 {[%emt 0:04:32]} 29. Be2 {[%emt 0:00:25]} Ne5
{[%emt 0:01:00]} 30. Rad1 {[%emt 0:00:10]} Ra8 {[%emt 0:08:13]} 31. f4 {
[%emt 0:04:16]} Nd7 {[%emt 0:00:27]} 32. c4 {[%emt 0:01:34]} Nf6 {[%emt 0:00:
00]} 33. cxd5 {[%emt 0:00:34]} cxd5 {[%emt 0:00:18]} 34. Bf3 {[%emt 0:00:27]}
Rae8 {[%emt 0:01:51]} 35. Kf2 {[%emt 0:03:16]} Ne4+ {[%emt 0:06:23]} 36. Bxe4 {
[%emt 0:04:33]} dxe4 {[%emt 0:03:51]} 37. Rd7 {[%emt 0:04:23]} Rf7 {[%emt 0:00:
00]} 38. Ke2 {[%emt 0:04:11]} Re6 {[%emt 0:05:21]} 39. Rxf7 {[%emt 0:08:24]}
Kxf7 {[%emt 0:00:14]} 40. Rd5 {[%emt 0:00:09]} g6 {[%emt 0:00:30]} 41. Kd2 {
[%emt 0:30:28]} Ke7 {[%emt 0:33:26]} 42. Kc3 {[%emt 0:00:16]} h5 {[%emt 0:00:
00]} 43. Kc4 {[%emt 0:05:22]} b6 {[%emt 0:08:10]} 44. h4 {[%emt 0:06:01]} Rc6 {
[%emt 0:02:35]} 45. Rd1 {[%emt 0:07:51]} bxc5 {[%emt 0:02:14]} 46. bxc5 {
[%emt 0:00:05]} Rc8 {[%emt 0:00:31]} 47. Rd6 {[%emt 0:00:46]} Ra8 {[%emt 0:00:
00]} 48. Rxg6 {[%emt 0:00:10]} a5 {[%emt 0:00:30]} 49. Kd5 {[%emt 0:04:18]} a4
{[%emt 0:00:34]} 50. Rg7+ {[%emt 0:00:08]} Kf6 {[%emt 0:00:20]} 51. Rb7 {
[%emt 0:00:18]} a3 {[%emt 0:00:10]} 52. Rb1 {[%emt 0:00:03]} a2 {[%emt 0:00:54]
} 53. Ra1 {[%emt 0:00:04]} Ra3 {[%emt 0:00:14]} 54. Kd6 {[%emt 0:01:07]} Rd3+ {
[%emt 0:00:53]} 55. Kc7 {[%emt 0:00:12]} Rc3 {[%emt 0:00:23]} 56. c6 {[%emt 0:
00:00]} Rc2 {[%emt 0:01:16]} 57. Kd7 {[%emt 0:00:44]} Rd2+ {[%emt 0:02:04]} 58.
Kc8 {[%emt 0:02:02]} Ke7 {[%emt 0:00:13]} 59. c7 {[%emt 0:00:57]} Rc2 {[%emt 0:
00:00]} 60. Kb7 {[%emt 0:00:16]} Rb2+ {[%emt 0:00:43]} 61. Kc6 {[%emt 0:00:07]}
Rc2+ {[%emt 0:00:38]} 62. Kd5 {[%emt 0:00:39]} Rxc7 {[%emt 0:01:24]} 63. Rxa2 {
[%emt 0:00:06]} Rb7 {[%emt 0:00:49]} 64. Ra5 {[%emt 0:00:23]} Kf7 {[%emt 0:00:
00]} 65. Ke5 {[%emt 0:00:06]} Kg6 {[%emt 0:00:33]} 66. Ra6+ {[%emt 0:00:07]}
Kg7 {[%emt 0:00:07]} 67. Kxf5 {[%emt 0:00:04]} 1-0

[Event "44th Chess Olympiad Open 2022"]
[Site "Chennai"]
[Date "2022.08.06"]
[Round "8.63"]
[White "Garcia Cuestas, Kevin"]
[Black "Barcon, Harmon"]
[Result "0-1"]
[WhiteElo "1984"]
[BlackElo "1902"]
[Annotator "NA RC"]
[PlyCount "78"]
[EventDate "2022.??.??"]
[TimeControl "60"]

1. e4 {[%emt 0:00:11]} e5 {[%emt 0:00:12]} 2. Nf3 {[%emt 0:00:08]} d6 {[%emt 0:
00:00]} 3. d4 {[%emt 0:00:09]} exd4 {[%emt 0:00:11]} 4. Nxd4 {[%emt 0:00:09]}
Nf6 {[%emt 0:00:15]} 5. Nc3 {[%emt 0:00:34]} Be7 {[%emt 0:00:08]} 6. Bd3 {
[%emt 0:02:56]} a6 {[%emt 0:00:05]} 7. Bf4 {[%emt 0:06:39]} b5 {[%emt 0:02:31]}
8. a3 {[%emt 0:01:22]} c5 {[%emt 0:02:46]} 9. Nf5 {[%emt 0:03:05]} Bxf5 {
[%emt 0:00:30]} 10. exf5 {[%emt 0:00:16]} d5 {[%emt 0:00:19]} 11. O-O {[%emt 0:
00:00]} O-O {[%emt 0:01:11]} 12. Qf3 {[%emt 0:04:15]} Nc6 {[%emt 0:00:17]} 13.
Rfd1 {[%emt 0:09:16]} Ra7 {[%emt 0:06:24]} 14. Rd2 {[%emt 0:11:52]} Nd4 {
[%emt 0:06:05]} 15. Qh3 {[%emt 0:00:16]} Rd7 {[%emt 0:02:06]} 16. Re1 {[%emt 0:
00:00]} Re8 {[%emt 0:01:39]} 17. Nd1 {[%emt 0:07:00]} Bd6 {[%emt 0:03:01]} 18.
Rxe8+ {[%emt 0:04:47]} Qxe8 {[%emt 0:00:24]} 19. Be3 {[%emt 0:03:27]} Nc6 {
[%emt 0:05:44]} 20. g3 {[%emt 0:11:08]} Ne5 {[%emt 0:11:21]} 21. Kg2 {[%emt 0:
00:00]} d4 {[%emt 0:08:15]} 22. Bg5 {[%emt 0:01:33]} Qa8+ {[%emt 0:00:22]} 23.
Kf1 {[%emt 0:02:56]} Nf3 {[%emt 0:03:09]} 24. Bxf6 {[%emt 0:01:28]} Nxd2+ {
[%emt 0:00:03]} 25. Ke2 {[%emt 0:00:23]} Qf3+ {[%emt 0:00:41]} 26. Kxd2 {
[%emt 0:02:32]} Bf4+ {[%emt 0:00:23]} 27. Ke1 {[%emt 0:00:11]} gxf6 {[%emt 0:
00:00]} 28. Qf1 {[%emt 0:04:49]} Re7+ {[%emt 0:01:27]} 29. Be2 {[%emt 0:00:09]}
Bc1 {[%emt 0:01:11]} 30. Ne3 {[%emt 0:01:05]} Qe4 {[%emt 0:04:03]} 31. Bd3 {
[%emt 0:00:21]} Qe5 {[%emt 0:00:34]} 32. Kd1 {[%emt 0:00:15]} dxe3 {[%emt 0:00:
00]} 33. Kxc1 {[%emt 0:00:46]} c4 {[%emt 0:00:14]} 34. f4 {[%emt 0:00:42]} Qd5
{[%emt 0:03:38]} 35. Be2 {[%emt 0:00:07]} c3 {[%emt 0:02:43]} 36. Kb1 {[%emt 0:
00:00]} cxb2 {[%emt 0:00:26]} 37. Kxb2 {[%emt 0:00:07]} Qd4+ {[%emt 0:00:41]}
38. Ka2 {[%emt 0:00:34]} Qd2 {[%emt 0:00:43]} 39. Kb2 {[%emt 0:00:28]} b4 {
[%emt 0:00:16]} 0-1

[Event "44th Chess Olympiad Open 2022"]
[Site "Chennai"]
[Date "2022.08.06"]
[Round "8.63"]
[White "Bobby Ballah"]
[Black "Gavarrete, Joel"]
[Result "0-1"]
[WhiteElo "1916"]
[BlackElo "2035"]
[Annotator "NA RC"]
[PlyCount "78"]
[EventDate "2022.??.??"]
[TimeControl "60"]

1. e4 {[%emt 0:00:03]} c5 {[%emt 0:00:21]} 2. Nf3 {[%emt 0:00:15]} d6 {[%emt 0:
00:00]} 3. d4 {[%emt 0:00:57]} cxd4 {[%emt 0:00:13]} 4. Nxd4 {[%emt 0:00:06]}
Nf6 {[%emt 0:00:06]} 5. Nc3 {[%emt 0:00:05]} g6 {[%emt 0:00:07]} 6. Be3 {
[%emt 0:01:23]} Bg7 {[%emt 0:00:29]} 7. Bc4 {[%emt 0:01:23]} a6 {[%emt 0:02:48]
} 8. f3 {[%emt 0:03:09]} h5 {[%emt 0:01:37]} 9. Qd2 {[%emt 0:00:44]} Bd7 {
[%emt 0:03:39]} 10. O-O-O {[%emt 0:07:09]} b5 {[%emt 0:01:54]} 11. Bb3 {
[%emt 0:01:05]} Nc6 {[%emt 0:02:38]} 12. Nxc6 {[%emt 0:02:49]} Bxc6 {[%emt 0:
00:00]} 13. e5 {[%emt 0:02:03]} dxe5 {[%emt 0:16:49]} 14. Qxd8+ {[%emt 0:00:36]
} Rxd8 {[%emt 0:00:06]} 15. Rxd8+ {[%emt 0:00:09]} Kxd8 {[%emt 0:00:05]} 16.
Bxf7 {[%emt 0:00:07]} e4 {[%emt 0:02:01]} 17. f4 {[%emt 0:11:56]} Ng4 {[%emt 0:
00:00]} 18. Bb6+ {[%emt 0:05:23]} Kc8 {[%emt 0:00:12]} 19. h3 {[%emt 0:07:43]}
Nf6 {[%emt 0:02:51]} 20. Bxg6 {[%emt 0:02:03]} Bh6 {[%emt 0:02:13]} 21. Re1 {
[%emt 0:09:50]} Bxf4+ {[%emt 0:02:16]} 22. Be3 {[%emt 0:00:16]} Bg3 {[%emt 0:
00:00]} 23. Rf1 {[%emt 0:05:55]} Rg8 {[%emt 0:03:06]} 24. Bf5+ {[%emt 0:06:53]}
Kc7 {[%emt 0:01:02]} 25. Ne2 {[%emt 0:10:37]} Bd6 {[%emt 0:01:45]} 26. Nf4 {
[%emt 0:01:47]} Nd5 {[%emt 0:02:01]} 27. Nxd5+ {[%emt 0:01:01]} Bxd5 {[%emt 0:
00:00]} 28. h4 {[%emt 0:06:43]} Rxg2 {[%emt 0:00:12]} 29. Bg5 {[%emt 0:00:56]}
Bg3 {[%emt 0:04:26]} 30. Bg6 {[%emt 0:02:29]} Bxh4 {[%emt 0:04:46]} 31. Bxh4 {
[%emt 0:03:18]} Rxg6 {[%emt 0:00:07]} 32. Bxe7 {[%emt 0:00:04]} e3 {[%emt 0:00:
00]} 33. Re1 {[%emt 0:01:15]} Re6 {[%emt 0:00:06]} 34. Bg5 {[%emt 0:00:18]} e2
{[%emt 0:00:06]} 35. Kd2 {[%emt 0:01:12]} Bf3 {[%emt 0:00:09]} 36. b3 {[%emt 0:
00:00]} Kd7 {[%emt 0:01:20]} 37. Rc1 {[%emt 0:03:28]} Rd6+ {[%emt 0:02:17]} 38.
Ke1 {[%emt 0:01:26]} Rd1+ {[%emt 0:00:22]} 39. Kf2 {[%emt 0:00:04]} e1=Q+ {
[%emt 0:00:30]} 0-1